{"text_format":"3","workbook":"xlsx","n_sheets":1,"sheets":["9. QD KQ"],"not_rendered":{"external_links":3,"defined_names":62},"read":"whole","date_system":"1900"}

{"sheet":"9. QD KQ","index":0,"n_rows":42,"n_cols":6,"rows_kept":42,"merged":[[0,0,0,2],[0,3,0,7],[1,0,1,2],[1,3,1,7],[2,0,2,2],[3,0,3,2],[4,0,4,2],[4,3,4,7],[6,0,6,7],[7,0,7,7],[8,0,8,5],[9,0,9,5],[10,0,10,7],[12,0,12,7],[13,0,13,7],[14,0,14,5],[15,0,15,5],[16,0,16,5],[17,0,17,5],[18,0,18,5],[19,0,19,5],[20,0,20,7],[21,0,21,7],[22,0,22,5],[23,0,23,7],[24,0,24,7],[25,0,25,7],[26,0,26,7],[27,2,27,3],[28,0,28,5],[32,0,32,2],[33,0,33,2],[34,0,34,5],[35,0,35,7],[37,0,37,2],[37,4,37,7],[38,0,38,2],[38,4,38,7],[39,0,39,2],[41,4,41,7]]}
["TẬP ĐOÀN",null,null,"CỘNG HOÀ XÃ HỘI CHỦ NGHĨA VIỆT NAM"]
["BƯU CHÍNH VIỄN THÔNG",null,null,"Độc lập - Tự do - Hạnh phúc"]
["VIỆT NAM"]
["VIỄN THÔNG BẮC NINH"]
[{"$f":"\"Số: \"&'[1]Data HO so'!C17&[1]DATA!E32","v":"Số: 858/QĐ-VNPT-BN-KTĐT"},null,null,{"$f":"\"Bắc Ninh, \"&'[1]Data HO so'!H17","v":"Bắc Ninh,  ngày 13 tháng 4 năm 2021"}]
[]
["QUYẾT ĐỊNH "]
["Vv phê duyệt kết quả chỉ định thi công xây lắp"]
[{"$f":"'[1]1.TTr'!A7:F7","v":"Gói thầu: Thi công xây lắp"}]
[{"$f":"'[1]4.TD'!A8:F8","v":"Công trình : Đầu tư mở rộng mạng cáp quang khu vực  huyện Gia Bình năm 2021"}]
["GIÁM ĐỐC VIỄN THÔNG BẮC NINH"]
[]
[{"$f":"[1]DATA!D5","v":"          Căn cứ Luật Xây dựng số 50/2014/QH13 ngày 18/06/2014."}]
[{"$f":"[1]DATA!D4","v":"         Căn cứ Luật Đấu thầu số 43/2013/QH13 năm 2013 và Nghị định số 63/2014/NĐ-CP ngày 26/6/2014 của Chính phủ về hướng dẫn thi hành Luật Đấu thầu và lựa chọn nhà thầu xây dựng theo Luật Xây dựng; "}]
[{"$f":"[1]DATA!D26","v":"          Căn cứ Quyết định số 165/QĐ-VNPT-HĐTV-NL  ngày 31/05/2016 của Hội đồng quản trị Tập đoàn Bưu chính Viễn thông Việt Nam về việc ban hành Quy chế tổ chức và hoạt động của Viễn thông Bắc Ninh;"}]
[{"$f":"[1]DATA!D27","v":"          Căn cứ quyết định số 151/QĐ-VNPT-HĐTV-ĐTPT ngày 08/11/2019 của Tập đoàn BCVT Việt nam về việc phân cấp và uỷ quyền trong công tác đầu tư và xây dựng;"}]
[{"$f":"'[1]Data HO so'!K8","v":"         Căn cứ quyết định số 778/QĐ-VNPT-BN-KTĐT ngày 5/4/2021 của Giám đốc Viễn thông Bắc Ninh về việc phê duyệt BCKTKT và kế hoạch thực hiện công trình; "}]
[{"$f":"'[1]8. Tr'!A15:H15","v":"         Căn cứ quyết định số 827/QĐ-VNPT-BN-KTĐT ngày 9/4/2021 của Giám đốc Viễn thông Bắc Ninh về việc phê duyệt chỉ định nhà thầu thực hiện; "}]
[{"$f":"'[1]8. Tr'!A16:H16","v":"         Căn cứ dự thảo hợp đồng  ngày 9/4/2021 của Viễn thông Bắc Ninh ; "}]
[{"$f":"'[1]8. Tr'!A17:H17","v":"         Căn cứ biên bản thương thảo hợp đồng  ngày 12/4/2021 giữa Viễn thông Bắc Ninh Công ty TNHH Công nghệ và truyền thông Helios"}]
[{"$f":"'[1]Data HO so'!K16","v":"        Theo đề nghị của ông Trưởng phòng KT-ĐT tại tờ trình số 719/TTr-KTĐT ngày 12/4/2021 về việc xin phê duyệt kết quả chỉ định thầu,"}]
["QUYẾT ĐỊNH:"]
["       Điều 1. Nay Phê duyệt kết quả chỉ định thầu, gói thầu\" Thi công xây lắp\" Công trình: Đầu tư mở rộng mạng cáp quang khu vực  huyện Gia Bình năm 2021, cụ thể như sau:"]
[{"$f":"\"          1. Nhà thầu trúng thầu:\"","v":"          1. Nhà thầu trúng thầu:"}]
[{"$f":"'[1]8. Tr'!A20:H20","v":"          Công ty TNHH Công nghệ và truyền thông Helios"}]
[{"$f":"'[1]8. Tr'!A21:H21","v":"          Địa chỉ: Số 745, ngõ 743 khu Sơn Trung, phường Nam Sơn, TP Bắc Ninh, tỉnh Bắc Ninh"}]
[{"$f":"\"          2. Giá trúng thầu:\"","v":"          2. Giá trúng thầu:"}]
[null,null,"+ Giá trị sau VAT",null,{"$f":"D31+D32","v":{"v":430041681.2211025,"d":"430,041,681"}},"VNĐ"]
[{"$f":"'[1]8. Tr'!A24","v":"(Bằng chữ: Bốn trăm ba mươi triệu, không trăm bốn mươi mốt nghìn, sáu trăm tám mươi đồng)"}]
[null,null,"Trong đó:"]
[null,null,"+ Giá trị trước VAT:",{"$f":"'[1]8. Tr'!D26","v":{"v":390946982.928275,"d":"390,946,983"}},"VNĐ"]
[null,null,"+ Thuế VAT 10%:",{"$f":"'[1]8. Tr'!D27","v":{"v":39094698.2928275,"d":"39,094,698"}},"VNĐ"]
[{"$f":"\"          3. Tiến độ thi công:\"","v":"          3. Tiến độ thi công:"},null,null,{"$f":"'[1]8. Tr'!D28","v":"75 ngày"}]
[{"$f":"\"          4. Hình thức hợp đồng:\"","v":"          4. Hình thức hợp đồng:"},null,null,"Trọn gói"]
["       Điều 2. Giao cho  Phó giám đốc được ủy quyền, trưởng các phòng, ban chức năng liên quan thi hành quyết định này trong phạm vi quyền hạn và trách nhiệm của mình./. "]
["Quyết định này có hiệu lực kể từ ngày ký./."]
[]
[{"$f":"'[1]1.TTr'!A20:C20","v":"Nơi nhận:"},{"$nulls":3},{"$f":"[1]DATA!G46","v":"GIÁM ĐỐC"}]
["- Như trên;"]
["- Lưu: VT, KTĐT (ĐTXHV)."]
[]
[{"$nulls":4},{"$f":"[1]DATA!E46","v":"Nguyễn Trung Hiền"}]